[Event "8th Mersin Open 2024"]
[Site "Mersin"]
[Date "2024.11.11"]
[Round "3"]
[White "Tirpan, Ceren"]
[Black "Bicer, Atakan Mert"]
[Result "1/2-1/2"]
[ECO "A22"]
[WhiteElo "2053"]
[BlackElo "2342"]
[Annotator "RC"]
[PlyCount "164"]
[EventDate "2024.11.10"]
[EventType "swiss"]
[EventCountry "TUR"]
[SourceTitle "playchess.com"]
[Source "ChessBase"]
[SourceQuality "1"]
[TimeControl "5400+30"]

1. c4 {[%emt 0:01:00]} Nf6 {[%emt 0:02:00]} 2. Nc3 {[%emt 0:00:00]} e5 {[%emt 0:00:00]} 3. g3 {[%emt 0:00:00]} Bb4 {[%emt 0:01:00]} 4. Bg2 {[%emt 0:00:30]} O-O {[%emt 0:00:30]} 5. Nf3 {[%emt 0:03:30]} Re8 {[%emt 0:01:30]} 6. O-O {[%emt 0:03:30]} e4 {[%emt 0:14:30]} 7. Nd4 {[%emt 0:06:30]} Nc6 {[%emt 0:00:30]} 8. Nxc6 {[%emt 0:05:30]} dxc6 {[%emt 0:03:30]} 9. Qc2 {[%emt 0:06:30]} Bf5 {[%emt 0:05:30]} 10. Nd1 {[%emt 0:07:30]} Qd7 {[%emt 0:19:30]} 11. Ne3 {[%emt 0:02:30]} Rad8 {[%emt 0:00:30]} 12. a3 {[%emt 0:03:30]} Bd6 {[%emt 0:04:30]} 13. Rb1 {[%emt 0:10:30]} Bh3 {[%emt 0:11:30]} 14. b4 {[%emt 0:06:30]} Be5 {[%emt 0:03:30]} 15. Rb3 {[%emt 0:04:30]} Bxg2 {[%emt 0:06:30]} 16. Kxg2 {[%emt 0:00:30]} Qe6 {[%emt 0:00:30]} 17. d3 {[%emt 0:14:30]} Bd4 {[%emt 0:04:55]} 18. dxe4 {[%emt 0:02:30]} Nxe4 {[%emt 0:00:32]} 19. Rd3 {[%emt 0:00:30]} Bf6 {[%emt 0:01:40]} 20. Rxd8 {[%emt 0:01:20]} Rxd8 {[%emt 0:00:46]} 21. Rd1 {[%emt 0:00:27]} Rxd1 {[%emt 0:01:52]} 22. Qxd1 {[%emt 0:00:12]} h5 {[%emt 0:00:22]} 23. Qd3 {[%emt 0:03:09]} g6 {[%emt 0:03:36]} 24. h4 {[%emt 0:02:12]} Qe5 {[%emt 0:03:29]} 25. Nd1 {[%emt 0:01:56]} Qe7 {[%emt 0:04:30]} 26. c5 {[%emt 0:05:15]} Bg7 {[%emt 0:01:22]} 27. f3 {[%emt 0:03:41]} Nf6 {[%emt 0:00:10]} 28. Bg5 {[%emt 0:00:00]} Qe6 {[%emt 0:01:48]} 29. Nf2 {[%emt 0:00:00]} Nd7 {[%emt 0:01:42]} 30. Bf4 {[%emt 0:00:29]} b6 {[%emt 0:01:13]} 31. Ne4 {[%emt 0:00:30]} Qd5 {[%emt 0:00:30]} 32. Bxc7 {[%emt 0:01:15]} Qxd3 {[%emt 0:02:04]} 33. exd3 {[%emt 0:00:08]} b5 {[%emt 0:00:00]} 34. Nd2 {[%emt 0:00:42]} Bb2 {[%emt 0:00:00]} 35. Nb1 {[%emt 0:00:30]} f6 {[%emt 0:00:00]} 36. Kf2 {[%emt 0:00:30]} Kf7 {[%emt 0:00:00]} 37. Bf4 {[%emt 0:00:30]} Ke6 {[%emt 0:00:00]} 38. Bd2 {[%emt 0:00:30]} Kf5 {[%emt 0:00:00]} 39. Bc3 {[%emt 0:00:30]} Bc1 {[%emt 0:02:56]} 40. d4 {[%emt 0:02:06]} Ke6 {[%emt 0:00:17]} 41. Ke2 {[%emt 0:00:04]} f5 {[%emt 0:00:42]} 42. Kd1 {[%emt 0:01:11]} Be3 {[%emt 0:00:28]} 43. Ke2 {[%emt 0:00:25]} Bc1 {[%emt 0:00:53]} 44. Kd1 {[%emt 0:00:13]} Bh6 {[%emt 0:00:36]} 45. Ke2 {[%emt 0:00:12]} Kd5 {[%emt 0:00:36]} 46. Kd3 {[%emt 0:00:08]} Bc1 {[%emt 0:00:45]} 47. Ba1 {[%emt 0:00:10]} Ke6 {[%emt 0:00:00]} 48. Bc3 {[%emt 0:01:39]} Nf6 {[%emt 0:00:26]} 49. Bd2 {[%emt 0:00:51]} Bb2 {[%emt 0:00:06]} 50. Be3 {[%emt 0:01:42]} Nd5 {[%emt 0:01:00]} 51. Bf2 {[%emt 0:00:00]} Bc1 {[%emt 0:00:00]} 52. Bg1 {[%emt 0:01:31]} f4 {[%emt 0:00:59]} 53. g4 {[%emt 0:00:21]} Kf6 {[%emt 0:00:39]} 54. Ke4 {[%emt 0:01:27]} Ke6 {[%emt 0:00:18]} 55. g5 {[%emt 0:00:27]} Bb2 {[%emt 0:00:24]} 56. Bf2 {[%emt 0:00:57]} Bc1 {[%emt 0:00:41]} 57. Be1 {[%emt 0:00:15]} Be3 {[%emt 0:00:22]} 58. Nd2 {[%emt 0:01:14]} Nc3+ {[%emt 0:00:47]} 59. Kd3 {[%emt 0:00:05]} Na4 {[%emt 0:00:29]} 60. Nb3 {[%emt 0:01:06]} Kd5 {[%emt 0:00:27]} 61. Bd2 {[%emt 0:00:31]} Nb2+ {[%emt 0:00:45]} 62. Kc3 {[%emt 0:00:14]} Nc4 {[%emt 0:00:04]} 63. Bc1 {[%emt 0:00:36]} Bf2 {[%emt 0:00:31]} 64. Bxf4 {[%emt 0:01:07]} Bxh4 {[%emt 0:00:30]} 65. Bc1 {[%emt 0:00:00]} Bf2 {[%emt 0:00:12]} 66. Kd3 {[%emt 0:00:00]} h4 {[%emt 0:00:43]} 67. Bf4 {[%emt 0:00:44]} Nxa3 {[%emt 0:00:39]} 68. Bh2 {[%emt 0:00:30]} Nc4 {[%emt 0:01:00]} 69. f4 {[%emt 0:00:18]} Bg3 {[%emt 0:00:08]} 70. Bxg3 {[%emt 0:00:39]} hxg3 {[%emt 0:00:30]} 71. Nc1 {[%emt 0:00:00]} Ke6 {[%emt 0:00:28]} 72. Ne2 {[%emt 0:01:11]} Kf5 {[%emt 0:00:12]} 73. Nxg3+ {[%emt 0:00:32]} Kxf4 {[%emt 0:00:11]} 74. Ne2+ {[%emt 0:00:06]} Kxg5 {[%emt 0:00:46]} 75. d5 {[%emt 0:00:04]} cxd5 {[%emt 0:01:02]} 76. Kd4 {[%emt 0:00:05]} a5 {[%emt 0:00:16]} 77. c6 {[%emt 0:00:38]} Kf6 {[%emt 0:00:40]} 78. c7 {[%emt 0:00:25]} Nd6 {[%emt 0:00:25]} 79. bxa5 {[%emt 0:00:30]} Ke7 {[%emt 0:00:00]} 80. Kxd5 {[%emt 0:00:00]} Kd7 {[%emt 0:00:00]} 81. Kc5 {[%emt 0:00:18]} Kxc7 {[%emt 0:00:08]} 82. Nf4 {[%emt 0:00:00]} Nb7+ {[%emt 0:00:50]} 1/2-1/2

[Event "8th Mersin Open 2024"]
[Site "Mersin"]
[Date "2024.11.11"]
[Round "3"]
[White "Mahdavi, Armin"]
[Black "Yildiz, Serdar Murat"]
[Result "1/2-1/2"]
[ECO "B40"]
[WhiteElo "2038"]
[BlackElo "2201"]
[Annotator "RC"]
[PlyCount "103"]
[EventDate "2024.11.10"]
[EventType "swiss"]
[EventCountry "TUR"]
[SourceTitle "playchess.com"]
[Source "ChessBase"]
[SourceQuality "1"]
[TimeControl "5400+30"]

1. e4 {[%emt 0:01:00]} c5 {[%emt 0:01:00]} 2. Nf3 {[%emt 0:00:30]} e6 {[%emt 0:00:00]} 3. g3 {[%emt 0:00:00]} Nc6 {[%emt 0:00:00]} 4. Bg2 {[%emt 0:00:00]} Nf6 {[%emt 0:00:30]} 5. Qe2 {[%emt 0:00:30]} e5 {[%emt 0:00:00]} 6. O-O {[%emt 0:00:30]} Be7 {[%emt 0:02:00]} 7. d3 {[%emt 0:00:30]} O-O {[%emt 0:00:30]} 8. Bg5 {[%emt 0:01:30]} d6 {[%emt 0:00:30]} 9. c3 {[%emt 0:01:30]} h6 {[%emt 0:02:30]} 10. Bxf6 {[%emt 0:00:30]} Bxf6 {[%emt 0:00:00]} 11. Nfd2 {[%emt 0:04:30]} Rb8 {[%emt 0:06:00]} 12. Nc4 {[%emt 0:03:30]} b5 {[%emt 0:00:30]} 13. Ne3 {[%emt 0:00:30]} Ne7 {[%emt 0:11:30]} 14. Nd2 {[%emt 0:04:30]} Bb7 {[%emt 0:01:30]} 15. Nd5 {[%emt 0:03:30]} Nxd5 {[%emt 0:01:30]} 16. exd5 {[%emt 0:00:00]} Qb6 {[%emt 0:02:30]} 17. f4 {[%emt 0:07:00]} exf4 {[%emt 0:05:30]} 18. gxf4 {[%emt 0:00:30]} Rbe8 {[%emt 0:01:30]} 19. Ne4 {[%emt 0:02:30]} c4+ {[%emt 0:04:30]} 20. Qf2 {[%emt 0:11:30]} Bd8 {[%emt 0:02:30]} 21. Qxb6 {[%emt 0:04:30]} Bxb6+ {[%emt 0:00:30]} 22. d4 {[%emt 0:00:00]} Bc7 {[%emt 0:05:30]} 23. f5 {[%emt 0:05:00]} Rb8 {[%emt 0:09:30]} 24. b3 {[%emt 0:06:30]} Bxd5 {[%emt 0:01:30]} 25. Nf6+ {[%emt 0:01:30]} gxf6 {[%emt 0:00:00]} 26. Bxd5 {[%emt 0:00:00]} cxb3 {[%emt 0:00:00]} 27. axb3 {[%emt 0:00:00]} Bb6 {[%emt 0:00:30]} 28. Rf4 {[%emt 0:07:30]} Rfc8 {[%emt 0:06:30]} 29. c4 {[%emt 0:02:30]} bxc4 {[%emt 0:00:30]} 30. bxc4 {[%emt 0:01:30]} a5 {[%emt 0:00:30]} 31. Kh1 {[%emt 0:00:00]} Kf8 {[%emt 0:04:30]} 32. Rh4 {[%emt 0:01:00]} Re8 {[%emt 0:01:30]} 33. Rxh6 {[%emt 0:01:30]} Bxd4 {[%emt 0:00:30]} 34. Rh8+ {[%emt 0:05:30]} Kg7 {[%emt 0:00:30]} 35. Rxe8 {[%emt 0:00:30]} Rxe8 {[%emt 0:00:30]} 36. Rxa5 {[%emt 0:00:30]} Re1+ {[%emt 0:00:30]} 37. Kg2 {[%emt 0:00:30]} Re2+ {[%emt 0:00:00]} 38. Kg3 {[%emt 0:02:30]} Re7 {[%emt 0:08:00]} 39. Ra3 {[%emt 0:00:30]} Re2 {[%emt 0:02:30]} 40. Rb3 {[%emt 0:01:30]} Kh6 {[%emt 0:00:30]} 41. Kg4 {[%emt 0:02:30]} Rxh2 {[%emt 0:02:30]} 42. Rh3+ {[%emt 0:00:30]} Rxh3 {[%emt 0:00:30]} 43. Kxh3 {[%emt 0:00:30]} Kg5 {[%emt 0:00:30]} 44. Bxf7 {[%emt 0:00:30]} Kxf5 {[%emt 0:00:30]} 45. Kg2 {[%emt 0:00:30]} Kf4 {[%emt 0:00:30]} 46. Kf1 {[%emt 0:00:30]} f5 {[%emt 0:00:30]} 47. Be6 {[%emt 0:00:30]} Ke4 {[%emt 0:00:30]} 48. Bd5+ {[%emt 0:00:30]} Ke3 {[%emt 0:00:30]} 49. Be6 {[%emt 0:00:30]} f4 {[%emt 0:00:30]} 50. Bd5 {[%emt 0:00:30]} f3 {[%emt 0:00:30]} 51. Bg8 {[%emt 0:00:30]} f2 {[%emt 0:00:30]} 52. Bd5 {[%emt 0:00:00]} 1/2-1/2

[Event "8th Mersin Open 2024"]
[Site "Mersin"]
[Date "2024.11.11"]
[Round "3"]
[White "Ozen, Sadettin Alperen"]
[Black "Cheng, Bindi"]
[Result "0-1"]
[ECO "B50"]
[WhiteElo "2027"]
[BlackElo "2368"]
[Annotator "RC"]
[PlyCount "82"]
[EventDate "2024.11.10"]
[EventType "swiss"]
[EventCountry "TUR"]
[SourceTitle "playchess.com"]
[Source "ChessBase"]
[SourceQuality "1"]
[TimeControl "5400+30"]

1. e4 {[%emt 0:01:00]} c5 {[%emt 0:02:00]} 2. Nf3 {[%emt 0:00:00]} d6 {[%emt 0:00:00]} 3. c3 {[%emt 0:01:00]} Nf6 {[%emt 0:00:00]} 4. Be2 {[%emt 0:00:00]} Nbd7 {[%emt 0:00:00]} 5. d3 {[%emt 0:00:00]} b6 {[%emt 0:00:00]} 6. O-O {[%emt 0:00:30]} Bb7 {[%emt 0:00:30]} 7. Nbd2 {[%emt 0:00:00]} e6 {[%emt 0:00:30]} 8. Re1 {[%emt 0:07:00]} Be7 {[%emt 0:00:30]} 9. Bf1 {[%emt 0:06:30]} O-O {[%emt 0:00:30]} 10. d4 {[%emt 0:00:30]} cxd4 {[%emt 0:07:30]} 11. cxd4 {[%emt 0:00:00]} Qc7 {[%emt 0:00:30]} 12. b3 {[%emt 0:06:00]} Rfe8 {[%emt 0:03:30]} 13. Bb2 {[%emt 0:09:30]} Rac8 {[%emt 0:03:30]} 14. Rc1 {[%emt 0:03:30]} Qb8 {[%emt 0:00:00]} 15. Bb5 {[%emt 0:00:30]} a6 {[%emt 0:02:00]} 16. Bd3 {[%emt 0:00:30]} b5 {[%emt 0:06:30]} 17. Rxc8 {[%emt 0:06:30]} Rxc8 {[%emt 0:03:30]} 18. Qb1 {[%emt 0:00:30]} e5 {[%emt 0:06:30]} 19. Qa1 {[%emt 0:01:30]} exd4 {[%emt 0:01:30]} 20. Nxd4 {[%emt 0:00:30]} d5 {[%emt 0:08:30]} 21. e5 {[%emt 0:10:30]} Ng4 {[%emt 0:02:30]} 22. Nf5 {[%emt 0:04:30]} Bc5 {[%emt 0:13:30]} 23. Bd4 {[%emt 0:00:30]} Re8 {[%emt 0:03:30]} 24. f4 {[%emt 0:08:30]} Bb4 {[%emt 0:03:30]} 25. Qd1 {[%emt 0:02:30]} h5 {[%emt 0:03:30]} 26. h3 {[%emt 0:02:30]} Nc5 {[%emt 0:00:30]} 27. Bb1 {[%emt 0:07:30]} Ne6 {[%emt 0:01:30]} 28. hxg4 {[%emt 0:01:30]} Nxd4 {[%emt 0:00:30]} 29. Nxd4 {[%emt 0:00:00]} Qa7 {[%emt 0:03:30]} 30. N2f3 {[%emt 0:10:16]} hxg4 {[%emt 0:00:30]} 31. Qd3 {[%emt 0:07:19]} gxf3 {[%emt 0:04:30]} 32. Re3 {[%emt 0:00:06]} g6 {[%emt 0:01:30]} 33. e6 {[%emt 0:00:11]} f5 {[%emt 0:00:30]} 34. g4 {[%emt 0:00:55]} Bc5 {[%emt 0:00:30]} 35. gxf5 {[%emt 0:01:37]} Bc8 {[%emt 0:15:41]} 36. f6 {[%emt 0:00:30]} Kh8 {[%emt 0:00:30]} 37. Rxf3 {[%emt 0:03:39]} Bxe6 {[%emt 0:02:27]} 38. Kf1 {[%emt 0:00:56]} Qh7 {[%emt 0:00:41]} 39. Kg1 {[%emt 0:00:46]} Bf5 {[%emt 0:00:30]} 40. Kf1 {[%emt 0:00:30]} Be6 {[%emt 0:00:30]} 41. f5 {[%emt 0:00:30]} Bxf5 {[%emt 0:00:30]} 0-1

[Event "8th Mersin Open 2024"]
[Site "Mersin"]
[Date "2024.11.11"]
[Round "3"]
[White "Karabulut, Etka"]
[Black "Biriya, Mohammadamin"]
[Result "1/2-1/2"]
[ECO "D00"]
[WhiteElo "2024"]
[BlackElo "2139"]
[Annotator "NA RC"]
[PlyCount "49"]
[EventDate "2024.11.10"]
[EventType "swiss"]
[EventCountry "TUR"]
[SourceTitle "playchess.com"]
[Source "ChessBase"]
[SourceQuality "1"]
[TimeControl "5400+30"]

1. d4 {[%emt 0:01:00]} Nf6 {[%emt 0:02:00]} 2. Bg5 {[%emt 0:00:30]} d5 {[%emt 0:02:30]} 3. Bxf6 {[%emt 0:00:30]} exf6 {[%emt 0:00:30]} 4. e3 {[%emt 0:00:00]} Be6 {[%emt 0:03:30]} 5. Nd2 {[%emt 0:04:00]} Bd6 {[%emt 0:07:30]} 6. Ne2 {[%emt 0:03:30]} O-O {[%emt 0:01:30]} 7. g3 {[%emt 0:01:30]} c6 {[%emt 0:08:30]} 8. Bg2 {[%emt 0:00:30]} f5 {[%emt 0:11:30]} 9. O-O {[%emt 0:00:30]} Qb6 {[%emt 0:04:30]} 10. b3 {[%emt 0:01:30]} Nd7 {[%emt 0:02:30]} 11. c4 $11 {[%emt 0:03:30]} Qa6 {[%emt 0:06:30]} 12. Qc2 {[%emt 0:10:30]} b5 {[%emt 0:06:30]} 13. cxd5 {[%emt 0:05:30]} cxd5 {[%emt 0:01:30]} 14. Qd3 {[%emt 0:14:30]} Qb7 {[%emt 0:01:30]} 15. Nf4 {[%emt 0:02:30]} Rfc8 {[%emt 0:05:30]} 16. a4 {[%emt 0:05:30]} a6 {[%emt 0:07:30]} 17. Rfc1 {[%emt 0:01:30]} b4 {[%emt 0:03:30]} 18. Nf3 {[%emt 0:00:30]} Bxf4 {[%emt 0:00:30]} 19. gxf4 {[%emt 0:13:30]} Nf6 {[%emt 0:00:30]} 20. Ne5 {[%emt 0:00:30]} Ne4 {[%emt 0:00:00]} 21. f3 {[%emt 0:00:00]} f6 {[%emt 0:03:00]} 22. Ng4 {[%emt 0:04:00]} h5 {[%emt 0:02:07]} 23. Nf2 {[%emt 0:00:30]} Nxf2 {[%emt 0:00:30]} 24. Kxf2 {[%emt 0:00:30]} Rc6 {[%emt 0:00:42]} 25. Rc5 {[%emt 0:06:30]} 1/2-1/2

[Event "8th Mersin Open 2024"]
[Site "Mersin"]
[Date "2024.11.11"]
[Round "3"]
[White "Shafei, Hamid"]
[Black "Hasirci, Ozgur Deniz"]
[Result "1-0"]
[ECO "B21"]
[WhiteElo "2018"]
[BlackElo "2128"]
[Annotator "NA RC"]
[PlyCount "81"]
[EventDate "2024.11.10"]
[EventType "swiss"]
[EventCountry "TUR"]
[SourceTitle "playchess.com"]
[Source "ChessBase"]
[SourceQuality "1"]
[TimeControl "5400+30"]

1. e4 {[%emt 0:04:00]} c5 {[%emt 0:01:00]} 2. d4 {[%emt 0:00:30]} cxd4 {[%emt 0:00:00]} 3. c3 {[%emt 0:00:30]} dxc3 {[%emt 0:00:00]} 4. Nxc3 {[%emt 0:00:00]} Nc6 {[%emt 0:00:30]} 5. Nf3 {[%emt 0:00:00]} d6 {[%emt 0:00:30]} 6. Bc4 {[%emt 0:00:30]} e6 {[%emt 0:00:00]} 7. O-O {[%emt 0:00:00]} Nf6 {[%emt 0:00:00]} 8. Qe2 {[%emt 0:00:00]} Be7 {[%emt 0:00:30]} 9. Rd1 {[%emt 0:00:30]} e5 {[%emt 0:00:00]} 10. Be3 {[%emt 0:00:30]} Bg4 {[%emt 0:01:00]} 11. h3 {[%emt 0:00:30]} Bh5 {[%emt 0:00:00]} 12. g4 {[%emt 0:01:30]} Bg6 {[%emt 0:00:00]} 13. Nh4 {[%emt 0:00:30]} Rc8 {[%emt 0:12:30]} 14. Nf5 {[%emt 0:02:30]} Bxf5 {[%emt 0:03:30]} 15. exf5 {[%emt 0:00:30]} Nd7 {[%emt 0:11:30]} (15... h6 $14) 16. Nd5 {[%emt 0:07:30]} O-O $11 {[%emt 0:06:30]} 17. Rac1 {[%emt 0:07:30]} Bg5 {[%emt 0:03:30]} 18. a3 {[%emt 0:09:30]} Re8 {[%emt 0:04:30]} 19. Nc3 {[%emt 0:02:30]} Nd4 {[%emt 0:04:30]} 20. Qf1 {[%emt 0:01:30]} Nc5 {[%emt 0:19:30]} 21. Bd5 {[%emt 0:02:30]} Ncb3 {[%emt 0:12:18]} 22. Rb1 {[%emt 0:07:30]} Qe7 {[%emt 0:03:08]} 23. Qg2 {[%emt 0:04:30]} Bf4 {[%emt 0:03:31]} 24. Re1 {[%emt 0:14:30]} Qd8 {[%emt 0:04:59]} 25. Rbd1 {[%emt 0:02:30]} Qb6 {[%emt 0:02:06]} 26. Bxb3 {[%emt 0:12:26]} Qxb3 {[%emt 0:00:30]} 27. Bxf4 {[%emt 0:00:30]} Qxb2 {[%emt 0:00:16]} 28. Bd2 {[%emt 0:06:26]} Rxc3 {[%emt 0:00:30]} 29. Bxc3 {[%emt 0:00:41]} Qxc3 {[%emt 0:00:04]} 30. Re3 {[%emt 0:00:18]} Qb2 {[%emt 0:00:39]} 31. Qe4 {[%emt 0:03:56]} Rc8 {[%emt 0:01:39]} 32. Kg2 {[%emt 0:03:33]} h6 {[%emt 0:00:38]} 33. Rb1 {[%emt 0:00:52]} Qd2 {[%emt 0:03:08]} 34. Rd3 {[%emt 0:02:28]} Qc2 {[%emt 0:01:00]} 35. Rxb7 {[%emt 0:00:30]} Ne2 {[%emt 0:00:30]} 36. Re3 {[%emt 0:00:30]} Nf4+ {[%emt 0:00:30]} 37. Kg3 {[%emt 0:00:30]} Qd1 {[%emt 0:00:30]} 38. Rb1 {[%emt 0:00:30]} Rc1 {[%emt 0:00:30]} 39. Re1 {[%emt 0:02:10]} Ne2+ {[%emt 0:00:41]} 40. Qxe2 {[%emt 0:02:38]} Qxe2 {[%emt 0:00:30]} 41. Rb8+ {[%emt 0:00:00]} 1-0

[Event "8th Mersin Open 2024"]
[Site "Mersin"]
[Date "2024.11.11"]
[Round "3"]
[White "Celebi, Mehmet Alper"]
[Black "Sahin, Ata Sarp"]
[Result "1/2-1/2"]
[ECO "B15"]
[WhiteElo "2014"]
[BlackElo "2109"]
[Annotator "NA"]
[PlyCount "59"]
[EventDate "2024.11.10"]
[EventType "swiss"]
[EventCountry "TUR"]
[SourceTitle "playchess.com"]
[Source "ChessBase"]
[SourceQuality "1"]
[TimeControl "5400+30"]

1. e4 {[%emt 0:01:00]} c6 {[%emt 0:01:00]} 2. d4 {[%emt 0:00:00]} d5 {[%emt 0:00:00]} 3. Nc3 {[%emt 0:01:00]} dxe4 {[%emt 0:00:00]} 4. Nxe4 {[%emt 0:00:00]} Nf6 {[%emt 0:00:30]} 5. Nxf6+ {[%emt 0:00:00]} exf6 {[%emt 0:00:30]} 6. c3 {[%emt 0:00:30]} Bd6 {[%emt 0:00:30]} 7. Bd3 {[%emt 0:00:30]} O-O {[%emt 0:00:30]} 8. Ne2 {[%emt 0:00:30]} Re8 {[%emt 0:01:30]} 9. O-O {[%emt 0:00:30]} Nd7 {[%emt 0:00:30]} 10. Ng3 {[%emt 0:13:30]} g6 {[%emt 0:11:30]} 11. Ne4 $14 {[%emt 0:09:30]} Be7 {[%emt 0:08:30]} 12. b3 {[%emt 0:16:30]} f5 {[%emt 0:02:30]} 13. Nd2 {[%emt 0:02:30]} Nf8 {[%emt 0:01:30]} 14. Bb2 {[%emt 0:00:30]} Ne6 {[%emt 0:03:30]} 15. Nf3 {[%emt 0:00:30]} Bf6 {[%emt 0:00:00]} 16. Qc2 {[%emt 0:06:30]} b6 {[%emt 0:03:00]} 17. Rad1 {[%emt 0:02:30]} Bb7 {[%emt 0:01:30]} 18. Qb1 {[%emt 0:04:30]} Nf4 {[%emt 0:14:30]} 19. c4 {[%emt 0:01:30]} Qc7 {[%emt 0:03:30]} 20. Rd2 {[%emt 0:01:30]} Rad8 {[%emt 0:21:30]} 21. Rfd1 {[%emt 0:03:30]} Bg7 {[%emt 0:02:30]} 22. Bf1 {[%emt 0:00:00]} Bh6 {[%emt 0:00:30]} 23. g3 {[%emt 0:06:00]} Ne6 {[%emt 0:00:30]} 24. Re2 {[%emt 0:00:30]} Bg7 {[%emt 0:02:30]} 25. Red2 {[%emt 0:02:30]} Bh6 {[%emt 0:02:33]} 26. Re2 {[%emt 0:00:30]} Bg7 {[%emt 0:00:30]} 27. Red2 {[%emt 0:00:00]} Bh6 {[%emt 0:07:55]} 28. Re2 {[%emt 0:00:00]} Bg7 {[%emt 0:00:30]} 29. Red2 {[%emt 0:00:30]} c5 {[%emt 0:00:31]} 30. d5 {[%emt 0:00:30]} 1/2-1/2

[Event "8th Mersin Open 2024"]
[Site "Mersin"]
[Date "2024.11.11"]
[Round "3"]
[White "Tezcan, Alper"]
[Black "Pourramezan chafjiri, Parsa"]
[Result "1/2-1/2"]
[ECO "B38"]
[WhiteElo "2002"]
[BlackElo "2081"]
[Annotator "NA RC"]
[PlyCount "69"]
[EventDate "2024.11.10"]
[EventType "swiss"]
[EventCountry "TUR"]
[SourceTitle "playchess.com"]
[Source "ChessBase"]
[SourceQuality "1"]
[TimeControl "5400+30"]

1. e4 {[%emt 0:01:00]} c5 {[%emt 0:01:00]} 2. Nf3 {[%emt 0:00:30]} Nc6 {[%emt 0:00:00]} 3. d4 {[%emt 0:00:00]} cxd4 {[%emt 0:00:00]} 4. Nxd4 {[%emt 0:00:00]} g6 {[%emt 0:00:30]} 5. c4 {[%emt 0:00:00]} Bg7 {[%emt 0:00:30]} 6. Be3 {[%emt 0:00:00]} Qb6 {[%emt 0:00:30]} 7. Nb3 {[%emt 0:00:30]} Qd8 {[%emt 0:00:30]} 8. Qd2 {[%emt 0:00:30]} Nf6 {[%emt 0:00:30]} 9. f3 {[%emt 0:00:30]} O-O {[%emt 0:05:30]} 10. Nc3 {[%emt 0:03:30]} d6 {[%emt 0:02:30]} 11. Be2 {[%emt 0:02:30]} Be6 {[%emt 0:01:30]} 12. O-O {[%emt 0:09:30]} Nd7 {[%emt 0:07:30]} 13. Rac1 {[%emt 0:14:30]} f5 $14 {[%emt 0:04:30]} 14. exf5 {[%emt 0:09:30]} gxf5 {[%emt 0:02:30]} 15. Rfd1 {[%emt 0:04:30]} Qe8 {[%emt 0:07:30]} 16. Nd5 {[%emt 0:13:30]} Rc8 {[%emt 0:01:30]} 17. Nd4 {[%emt 0:14:30]} Nxd4 {[%emt 0:11:30]} 18. Bxd4 {[%emt 0:00:30]} Bxd5 {[%emt 0:07:30]} 19. Bxg7 {[%emt 0:08:02]} Kxg7 {[%emt 0:00:30]} 20. Qxd5 {[%emt 0:00:53]} b6 {[%emt 0:03:30]} 21. f4 {[%emt 0:01:50]} Rc7 {[%emt 0:02:30]} 22. Re1 {[%emt 0:06:18]} Qf7 {[%emt 0:04:30]} 23. Qd2 {[%emt 0:02:33]} Qf6 {[%emt 0:02:30]} 24. Rc3 {[%emt 0:00:44]} Nc5 {[%emt 0:05:30]} 25. Bf3 {[%emt 0:02:22]} Ne6 {[%emt 0:01:30]} 26. Bd5 {[%emt 0:00:30]} Qd4+ {[%emt 0:00:30]} 27. Qxd4+ {[%emt 0:00:30]} Nxd4 {[%emt 0:01:30]} 28. Rd3 {[%emt 0:03:21]} Nc2 {[%emt 0:00:30]} 29. Rg3+ {[%emt 0:00:30]} Kh8 {[%emt 0:00:30]} 30. Re2 {[%emt 0:01:45]} Nb4 {[%emt 0:01:30]} 31. Rge3 {[%emt 0:00:30]} Nxd5 {[%emt 0:00:30]} 32. cxd5 {[%emt 0:00:30]} Rf7 {[%emt 0:01:30]} 33. Kf2 {[%emt 0:00:00]} Kg7 {[%emt 0:00:30]} 34. Rg3+ {[%emt 0:00:57]} Kf8 {[%emt 0:00:30]} 35. Rc3 {[%emt 0:00:29]} 1/2-1/2

[Event "8th Mersin Open 2024"]
[Site "Mersin"]
[Date "2024.11.11"]
[Round "3"]
[White "Tatlioglu, Ege"]
[Black "Ozen, Ilhami Goktug"]
[Result "1/2-1/2"]
[ECO "D51"]
[WhiteElo "1910"]
[BlackElo "1841"]
[Annotator "NA RC"]
[PlyCount "46"]
[EventDate "2024.11.10"]
[EventType "swiss"]
[EventCountry "TUR"]
[SourceTitle "playchess.com"]
[Source "ChessBase"]
[SourceQuality "1"]
[TimeControl "5400+30"]

1. d4 {[%emt 0:01:00]} Nf6 {[%emt 0:01:00]} 2. c4 {[%emt 0:00:30]} e6 {[%emt 0:00:30]} 3. Nc3 {[%emt 0:00:00]} d5 {[%emt 0:00:00]} 4. cxd5 {[%emt 0:00:00]} exd5 {[%emt 0:00:00]} 5. Bg5 {[%emt 0:00:30]} Nbd7 {[%emt 0:00:00]} 6. e3 {[%emt 0:00:30]} Bb4 {[%emt 0:00:00]} 7. Bd3 {[%emt 0:09:30]} c5 {[%emt 0:00:00]} 8. Nge2 {[%emt 0:05:30]} c4 {[%emt 0:05:00]} 9. Bc2 {[%emt 0:03:30]} O-O {[%emt 0:00:30]} 10. O-O {[%emt 0:00:30]} Qa5 {[%emt 0:02:30]} 11. f3 {[%emt 0:11:30]} Re8 {[%emt 0:05:30]} 12. Qe1 $14 {[%emt 0:06:30]} b5 {[%emt 0:20:30]} 13. Qg3 {[%emt 0:07:30]} Qb6 {[%emt 0:05:30]} 14. Nf4 {[%emt 0:21:30]} Bb7 {[%emt 0:07:30]} 15. Rfe1 {[%emt 0:06:30]} Bd6 {[%emt 0:01:30]} 16. a3 {[%emt 0:07:32]} a5 {[%emt 0:00:30]} 17. Bf5 {[%emt 0:03:28]} Bxf4 {[%emt 0:09:30]} 18. Bxf4 {[%emt 0:01:56]} b4 {[%emt 0:01:30]} 19. Nd1 {[%emt 0:01:12]} g6 {[%emt 0:03:30]} 20. Bxd7 {[%emt 0:01:11]} Nxd7 {[%emt 0:00:30]} 21. Nf2 {[%emt 0:00:22]} f5 {[%emt 0:04:30]} 22. h4 {[%emt 0:01:03]} Nf6 {[%emt 0:01:30]} 23. Be5 {[%emt 0:00:23]} Nd7 {[%emt 0:01:30]} 1/2-1/2

[Event "8th Mersin Open 2024"]
[Site "Mersin"]
[Date "2024.11.11"]
[Round "3"]
[White "Oz, Ege"]
[Black "Rabbani, Abtin"]
[Result "1-0"]
[ECO "B27"]
[WhiteElo "1895"]
[BlackElo "1805"]
[Annotator "NA RC"]
[PlyCount "33"]
[EventDate "2024.11.10"]
[EventType "swiss"]
[EventCountry "TUR"]
[SourceTitle "playchess.com"]
[Source "ChessBase"]
[SourceQuality "1"]
[TimeControl "5400+30"]

1. e4 {[%emt 0:01:00]} c5 {[%emt 0:02:00]} 2. Nf3 {[%emt 0:00:30]} g6 {[%emt 0:00:00]} 3. d4 {[%emt 0:00:00]} cxd4 {[%emt 0:00:00]} 4. Qxd4 {[%emt 0:00:00]} Nf6 {[%emt 0:00:30]} 5. e5 {[%emt 0:00:00]} Nc6 {[%emt 0:00:00]} 6. Qh4 {[%emt 0:01:00]} Nxe5 {[%emt 0:01:00]} 7. Nxe5 {[%emt 0:00:30]} Qa5+ {[%emt 0:00:30]} 8. Nc3 {[%emt 0:00:30]} Qxe5+ {[%emt 0:00:00]} 9. Be3 {[%emt 0:00:00]} Bg7 {[%emt 0:03:00]} 10. O-O-O {[%emt 0:00:00]} O-O {[%emt 0:02:30]} 11. Bc4 {[%emt 0:00:00]} Qa5 {[%emt 0:24:30]} 12. Bg5 {[%emt 0:03:00]} Kh8 {[%emt 0:11:30]} 13. Rhe1 $16 {[%emt 0:04:30]} Qd8 {[%emt 0:13:30]} 14. g4 {[%emt 0:05:30]} a6 {[%emt 0:02:30]} 15. Rxe7 {[%emt 0:06:30]} Qxe7 {[%emt 0:01:30]} 16. Nd5 {[%emt 0:00:30]} Qe5 {[%emt 0:06:30]} 17. f4 {[%emt 0:01:30]} 1-0